[Event "Championnat d'Europe de Blitz"]
[Date "2024.12.09"]
[White "Kalezic, Blazo"]
[Black "Yuste Valenzuela, Alejandro"]
[WhiteElo "2382"]
[BlackElo "2150"]
[Round "2.43"]
[Result "0-1"]
[TimeControl "180+2"]

1. e4 {[%emt 00:00:02] [%clk 00:03:01]} e5 {[%emt 00:00:01] [%clk 00:03:03]} 2.
Nf3 {[%emt 00:00:02] [%clk 00:03:02]} Nc6 {[%emt 00:00:01] [%clk 00:03:04]} 3.
Bb5 {[%clk 00:03:03]} a6 {[%emt 00:00:02] [%clk 00:03:05]} 4. Ba4 {[%clk
00:03:04]} d6 {[%emt 00:00:01] [%clk 00:03:06]} 5. O-O {[%emt 00:00:17] [%clk
00:02:49]} g6 {[%emt 00:00:03] [%clk 00:03:04]} 6. c3 {[%emt 00:00:05] [%clk
00:02:46]} Bg7 {[%clk 00:03:05]} 7. d4 {[%emt 00:00:06] [%clk 00:02:42]} Bd7
{[%emt 00:00:01] [%clk 00:03:06]} 8. d5 {[%emt 00:00:04] [%clk 00:02:41]} Nb8
{[%emt 00:00:03] [%clk 00:03:04]} 9. Bxd7+ {[%emt 00:00:02] [%clk 00:02:41]}
Nxd7 {[%emt 00:00:03] [%clk 00:03:04]} 10. c4 {[%clk 00:02:42]} Ne7 {[%emt
00:00:05] [%clk 00:03:01]} 11. Nc3 {[%emt 00:00:02] [%clk 00:02:42]} h6 {[%emt
00:00:01] [%clk 00:03:02]} 12. Ne1 {[%emt 00:00:14] [%clk 00:02:30]} f5 {[%emt
00:00:04] [%clk 00:03:01]} 13. Nd3 {[%emt 00:00:04] [%clk 00:02:28]} O-O {[%emt
00:00:06] [%clk 00:02:56]} 14. f4 {[%emt 00:00:07] [%clk 00:02:23]} fxe4 {[%emt
00:00:17] [%clk 00:02:41]} 15. Nxe4 {[%emt 00:00:02] [%clk 00:02:23]} Nf5 {[%emt
00:00:02] [%clk 00:02:41]} 16. Qg4 {[%emt 00:00:19] [%clk 00:02:05]} Qe8 {[%emt
00:00:16] [%clk 00:02:28]} 17. fxe5 {[%emt 00:00:25] [%clk 00:01:42]} Nxe5
{[%emt 00:00:09] [%clk 00:02:20]} 18. Nxe5 {[%emt 00:00:02] [%clk 00:01:42]}
Qxe5 {[%emt 00:00:13] [%clk 00:02:10]} 19. Bd2 {[%emt 00:00:35] [%clk 00:01:09]}
Rae8 {[%emt 00:00:09] [%clk 00:02:04]} 20. Ng3 {[%emt 00:00:33] [%clk 00:00:36]}
Nxg3 {[%emt 00:00:33] [%clk 00:01:34]} 21. hxg3 {[%emt 00:00:05] [%clk
00:00:33]} Qxb2 {[%emt 00:00:18] [%clk 00:01:17]} 22. Rxf8+ {[%emt 00:00:28]
[%clk 00:00:09]} Rxf8 {[%emt 00:00:06] [%clk 00:01:12]} 23. Rd1 {[%emt 00:00:02]
[%clk 00:00:09]} Kh7 {[%emt 00:00:13] [%clk 00:01:02]} 24. Kh2 {[%emt 00:00:03]
[%clk 00:00:07]} Rf5 {[%emt 00:00:04] [%clk 00:01:00]} 25. Be3 {[%emt 00:00:04]
[%clk 00:00:05]} Qc3 {[%emt 00:00:16] [%clk 00:00:45]} 26. Qe4 {[%emt 00:00:03]
[%clk 00:00:05]} Qe5 {[%emt 00:00:10] [%clk 00:00:38]} 27. Qxe5 {[%emt 00:00:02]
[%clk 00:00:04]} Rxe5 {[%emt 00:00:03] [%clk 00:00:38]} 28. Rd3 {[%emt 00:00:01]
[%clk 00:00:05]} Re4 {[%emt 00:00:03] [%clk 00:00:37]} 29. c5 {[%emt 00:00:01]
[%clk 00:00:06]} Be5 {[%emt 00:00:06] [%clk 00:00:32]} 30. c6 {[%emt 00:00:02]
[%clk 00:00:06]} bxc6 {[%emt 00:00:04] [%clk 00:00:31]} 31. dxc6 {[%emt
00:00:01] [%clk 00:00:07]} Rc4 {[%emt 00:00:01] [%clk 00:00:31]} 32. Bf4 {[%emt
00:00:03] [%clk 00:00:06]} Bxf4 {[%emt 00:00:03] [%clk 00:00:30]} 33. gxf4
{[%clk 00:00:08]} Rxc6 {[%emt 00:00:02] [%clk 00:00:31]} 34. Re3 {[%emt
00:00:01] [%clk 00:00:08]} h5 {[%emt 00:00:01] [%clk 00:00:32]} 35. Re7+ {[%emt
00:00:02] [%clk 00:00:09]} Kh6 {[%clk 00:00:32]} 36. Re6 {[%emt 00:00:01] [%clk
00:00:10]} Rc5 {[%emt 00:00:01] [%clk 00:00:33]} 37. Kh3 {[%emt 00:00:04] [%clk
00:00:09]} a5 {[%emt 00:00:02] [%clk 00:00:32]} 38. g3 {[%emt 00:00:03] [%clk
00:00:08]} a4 {[%emt 00:00:02] [%clk 00:00:32]} 39. a3 {[%clk 00:00:10]} Kg7
{[%emt 00:00:09] [%clk 00:00:25]} 40. Re4 {[%emt 00:00:01] [%clk 00:00:11]} Ra5
{[%emt 00:00:08] [%clk 00:00:19]} 41. Re7+ {[%emt 00:00:02] [%clk 00:00:12]} Kf6
{[%emt 00:00:01] [%clk 00:00:20]} 42. Rxc7 {[%clk 00:00:13]} Ke6 {[%emt
00:00:07] [%clk 00:00:15]} 43. Rg7 {[%emt 00:00:02] [%clk 00:00:13]} Kf6 {[%emt
00:00:02] [%clk 00:00:15]} 44. Rd7 {[%clk 00:00:14]} d5 {[%emt 00:00:01] [%clk
00:00:16]} 45. Rd8 {[%emt 00:00:03] [%clk 00:00:13]} Kf5 {[%emt 00:00:03] [%clk
00:00:15]} 46. Kh4 {[%emt 00:00:01] [%clk 00:00:14]} Ke4 {[%emt 00:00:04] [%clk
00:00:13]} 47. Kg5 {[%emt 00:00:02] [%clk 00:00:14]} Ra6 {[%emt 00:00:02] [%clk
00:00:13]} 48. Re8+ {[%emt 00:00:05] [%clk 00:00:11]} Kd3 {[%emt 00:00:01] [%clk
00:00:14]} 49. Rg8 {[%emt 00:00:04] [%clk 00:00:09]} d4 {[%emt 00:00:02] [%clk
00:00:14]} 50. Rxg6 {[%clk 00:00:10]} Rxg6+ {[%emt 00:00:09] [%clk 00:00:08]}
51. Kxg6 {[%clk 00:00:11]} Ke3 {[%emt 00:00:02] [%clk 00:00:08]} 52. f5 {[%emt
00:00:01] [%clk 00:00:12]} d3 {[%clk 00:00:08]} 53. f6 {[%clk 00:00:13]} d2
{[%emt 00:00:01] [%clk 00:00:10]} 54. f7 {[%clk 00:00:15]} d1=Q {[%emt
00:00:03]} 55. f8=Q {[%clk 00:00:16]} Qg4+ {[%emt 00:00:02] [%clk 00:00:10]} 56.
Kh6 {[%emt 00:00:03] [%clk 00:00:14]} Qxg3 {[%emt 00:00:06] [%clk 00:00:06]} 57.
Qc5+ {[%emt 00:00:02] [%clk 00:00:13]} Kf3 {[%emt 00:00:03] [%clk 00:00:06]} 58.
Qc6+ {[%emt 00:00:03] [%clk 00:00:13]} Kf2 {[%emt 00:00:03] [%clk 00:00:05]} 59.
Qxa4 {[%emt 00:00:02] [%clk 00:00:12]} h4 {[%emt 00:00:01] [%clk 00:00:06]} 60.
Qd4+ {[%emt 00:00:02] [%clk 00:00:12]} Qe3+ {[%emt 00:00:01] [%clk 00:00:06]}
61. Qxe3+ {[%emt 00:00:03] [%clk 00:00:09]} Kxe3 {[%emt 00:00:04] [%clk
00:00:07]} 62. a4 {[%clk 00:00:11]} h3 {[%emt 00:00:01] [%clk 00:00:08]} 0-1

[Site "Europe Echecs"]

[Event "Championnat d'Europe de Blitz"]
[Date "2024.12.09"]
[White "Uruci, Besim"]
[Black "Pancevski, Filip"]
[WhiteElo "2095"]
[BlackElo "2420"]
[Round "2.44"]
[Result "0-1"]
[TimeControl "180+2"]

1. d4 {[%emt 00:00:03] [%clk 00:03:02]} Nf6 {[%clk 00:03:04]} 2. Nf3 {[%emt
00:00:01] [%clk 00:03:03]} g6 {[%clk 00:03:05]} 3. Nc3 {[%emt 00:00:05] [%clk
00:03:00]} Bg7 {[%emt 00:00:02] [%clk 00:03:05]} 4. e4 {[%emt 00:00:01] [%clk
00:03:01]} d6 {[%clk 00:03:06]} 5. h3 {[%emt 00:00:04] [%clk 00:02:59]} O-O
{[%emt 00:00:02] [%clk 00:03:06]} 6. Bc4 {[%emt 00:00:03] [%clk 00:02:59]} a6
{[%emt 00:00:01] [%clk 00:03:07]} 7. Be3 {[%emt 00:00:02] [%clk 00:02:59]} b5
{[%emt 00:00:02] [%clk 00:03:07]} 8. Bd3 {[%emt 00:00:02] [%clk 00:02:58]} Bb7
{[%emt 00:00:03] [%clk 00:03:06]} 9. a3 {[%emt 00:00:04] [%clk 00:02:57]} Nbd7
{[%emt 00:00:13] [%clk 00:02:54]} 10. Nd2 {[%emt 00:00:03] [%clk 00:02:56]} e5
{[%emt 00:00:18] [%clk 00:02:39]} 11. d5 {[%emt 00:00:13] [%clk 00:02:45]} c6
{[%clk 00:02:40]} 12. dxc6 {[%emt 00:00:02] [%clk 00:02:45]} Bxc6 {[%emt
00:00:01] [%clk 00:02:41]} 13. O-O {[%emt 00:00:08] [%clk 00:02:39]} Nc5 {[%emt
00:00:05] [%clk 00:02:37]} 14. f3 {[%emt 00:00:07] [%clk 00:02:34]} Nxd3 {[%emt
00:00:10] [%clk 00:02:29]} 15. cxd3 {[%emt 00:00:02] [%clk 00:02:35]} d5 {[%clk
00:02:31]} 16. Bg5 {[%emt 00:00:03] [%clk 00:02:33]} Qd7 {[%emt 00:01:04] [%clk
00:01:29]} 17. Qe2 {[%emt 00:00:03] [%clk 00:02:32]} Nh5 {[%emt 00:00:19] [%clk
00:01:11]} 18. exd5 {[%emt 00:00:38] [%clk 00:01:57]} Bxd5 {[%emt 00:00:08]
[%clk 00:01:05]} 19. Nxd5 {[%emt 00:00:01] [%clk 00:01:58]} Qxd5 {[%emt
00:00:01] [%clk 00:01:06]} 20. Qe4 {[%emt 00:00:02] [%clk 00:01:58]} Qd7 {[%emt
00:00:12] [%clk 00:00:56]} 21. Kh2 {[%emt 00:00:03] [%clk 00:01:57]} f6 {[%emt
00:00:12] [%clk 00:00:47]} 22. Bh4 {[%emt 00:00:19] [%clk 00:01:40]} Rad8 {[%emt
00:00:03] [%clk 00:00:46]} 23. Nb3 {[%emt 00:00:06] [%clk 00:01:35]} Qxd3 {[%emt
00:00:29] [%clk 00:00:19]} 24. Nc5 {[%emt 00:00:02] [%clk 00:01:36]} Qxe4 {[%emt
00:00:03] [%clk 00:00:17]} 25. fxe4 {[%emt 00:00:02] [%clk 00:01:35]} Rd6 {[%emt
00:00:02] [%clk 00:00:17]} 26. Rad1 {[%emt 00:00:05] [%clk 00:01:32]} Rfd8
{[%emt 00:00:01] [%clk 00:00:18]} 27. Rxd6 {[%emt 00:00:02] [%clk 00:01:33]}
Rxd6 {[%emt 00:00:01] [%clk 00:00:20]} 28. Nb7 {[%clk 00:01:33]} Rd2 {[%emt
00:00:05] [%clk 00:00:16]} 29. b3 {[%emt 00:00:05] [%clk 00:01:31]} Nf4 {[%emt
00:00:02] [%clk 00:00:16]} 30. Rg1 {[%emt 00:00:05] [%clk 00:01:28]} Rd3 {[%emt
00:00:06] [%clk 00:00:12]} 31. Nc5 {[%emt 00:00:02] [%clk 00:01:28]} Rc3 {[%emt
00:00:01] [%clk 00:00:13]} 32. Nxa6 {[%clk 00:01:29]} Rxb3 {[%emt 00:00:01]
[%clk 00:00:15]} 33. Nc7 {[%clk 00:01:30]} Rb2 {[%emt 00:00:06] [%clk 00:00:11]}
34. Bg3 {[%emt 00:00:04] [%clk 00:01:28]} Ne2 {[%emt 00:00:02] [%clk 00:00:11]}
35. Rd1 {[%emt 00:00:03] [%clk 00:01:27]} Nd4 {[%emt 00:00:01] [%clk 00:00:12]}
36. Ra1 {[%emt 00:00:09] [%clk 00:01:21]} Bf8 {[%emt 00:00:03] [%clk 00:00:11]}
37. a4 {[%emt 00:00:01] [%clk 00:01:21]} b4 {[%emt 00:00:02] [%clk 00:00:11]}
38. a5 {[%clk 00:01:22]} b3 {[%clk 00:00:13]} 39. a6 {[%clk 00:01:23]} Ra2
{[%clk 00:00:14]} 40. Rb1 {[%emt 00:00:04] [%clk 00:01:21]} Bd6 {[%emt 00:00:02]
[%clk 00:00:13]} 41. Nd5 {[%emt 00:00:03] [%clk 00:01:21]} Kf7 {[%emt 00:00:01]
[%clk 00:00:15]} 42. Be1 {[%emt 00:00:03] [%clk 00:01:19]} Rxa6 {[%emt 00:00:01]
[%clk 00:00:15]} 43. Bc3 {[%clk 00:01:21]} Ra3 {[%emt 00:00:05] [%clk 00:00:13]}
44. Bb2 {[%emt 00:00:04] [%clk 00:01:19]} Ra2 {[%clk 00:00:14]} 45. Bxd4 {[%emt
00:00:02] [%clk 00:01:19]} exd4+ {[%clk 00:00:15]} 46. Kg1 {[%emt 00:00:01]
[%clk 00:01:19]} b2 {[%emt 00:00:01] [%clk 00:00:16]} 47. Kf2 {[%emt 00:00:09]
[%clk 00:01:13]} Ba3 {[%clk 00:00:18]} 0-1

[Site "Europe Echecs"]

[Event "Championnat d'Europe de Blitz"]
[Date "2024.12.09"]
[White "Gavrilescu, David"]
[Black "Sirigos, Nikolaos"]
[WhiteElo "2549"]
[BlackElo "2044"]
[Round "2.45"]
[Result "1-0"]
[TimeControl "180+2"]

1. e4 {[%emt 00:00:02] [%clk 00:03:02]} c5 {[%emt 00:00:04] [%clk 00:03:01]} 2.
Nf3 {[%emt 00:00:01] [%clk 00:03:02]} d6 {[%emt 00:00:02] [%clk 00:03:01]} 3. d4
{[%emt 00:00:01] [%clk 00:03:03]} cxd4 {[%emt 00:00:02] [%clk 00:03:02]} 4. Qxd4
{[%emt 00:00:01] [%clk 00:03:03]} Nc6 {[%emt 00:00:03] [%clk 00:03:01]} 5. Qe3
{[%emt 00:00:01] [%clk 00:03:04]} g6 {[%emt 00:00:15] [%clk 00:02:49]} 6. h3
{[%clk 00:03:05]} Bh6 {[%emt 00:00:11] [%clk 00:02:41]} 7. Qc3 {[%clk 00:03:05]}
Qa5 {[%emt 00:00:21] [%clk 00:02:23]} 8. Qxa5 {[%emt 00:00:01] [%clk 00:03:05]}
Nxa5 {[%emt 00:00:02] [%clk 00:02:23]} 9. Bxh6 {[%clk 00:03:06]} Nxh6 {[%clk
00:02:24]} 10. Nc3 {[%emt 00:00:04] [%clk 00:03:03]} Be6 {[%emt 00:00:20] [%clk
00:02:06]} 11. Bb5+ {[%emt 00:00:20] [%clk 00:02:46]} Kf8 {[%emt 00:00:25] [%clk
00:01:42]} 12. O-O-O {[%emt 00:00:09] [%clk 00:02:39]} Rc8 {[%emt 00:00:18]
[%clk 00:01:27]} 13. e5 {[%emt 00:00:31] [%clk 00:02:09]} dxe5 {[%emt 00:00:19]
[%clk 00:01:10]} 14. Nxe5 {[%emt 00:00:02] [%clk 00:02:10]} Nf5 {[%emt 00:00:05]
[%clk 00:01:07]} 15. Rhe1 {[%emt 00:00:50] [%clk 00:01:22]} Nd6 {[%emt 00:00:10]
[%clk 00:00:59]} 16. Bd7 {[%emt 00:00:02] [%clk 00:01:22]} Bxd7 {[%emt 00:00:29]
[%clk 00:00:32]} 17. Nxd7+ {[%emt 00:00:02] [%clk 00:01:22]} Kg7 {[%clk
00:00:33]} 18. Rxe7 {[%emt 00:00:02] [%clk 00:01:22]} Nf5 {[%emt 00:00:09] [%clk
00:00:26]} 19. Ree1 {[%emt 00:00:20] [%clk 00:01:03]} Rhd8 {[%emt 00:00:11]
[%clk 00:00:18]} 20. g4 {[%emt 00:00:06] [%clk 00:00:59]} Nh4 {[%emt 00:00:02]
[%clk 00:00:18]} 21. Rd3 {[%emt 00:00:13] [%clk 00:00:48]} Rc7 {[%emt 00:00:07]
[%clk 00:00:13]} 22. Nc5 {[%emt 00:00:09] [%clk 00:00:41]} Rdc8 {[%emt 00:00:07]
[%clk 00:00:09]} 23. N5e4 {[%emt 00:00:03] [%clk 00:00:39]} b5 {[%emt 00:00:01]
[%clk 00:00:10]} 24. Nd6 {[%emt 00:00:03] [%clk 00:00:38]} Rb8 {[%emt 00:00:06]
[%clk 00:00:06]} 25. Ne8+ {[%emt 00:00:02] [%clk 00:00:38]} Rxe8 {[%clk
00:00:04]} 26. Rxe8 {[%emt 00:00:04] [%clk 00:00:39]} b4 {[%clk 00:00:06]} 27.
Ne4 {[%emt 00:00:02] [%clk 00:00:40]} Ng2 {[%emt 00:00:03] [%clk 00:00:04]} 28.
g5 {[%emt 00:00:04] [%clk 00:00:38]} Nf4 {[%clk 00:00:05]} 29. Rdd8 {[%emt
00:00:01] [%clk 00:00:39]} 1-0

[Site "Europe Echecs"]

[Event "Championnat d'Europe de Blitz"]
[Date "2024.12.09"]
[White "Veljanoski, Andrej"]
[Black "Guliyev, Namig"]
[WhiteElo "2304"]
[BlackElo "2484"]
[Round "2.46"]
[Result "1-0"]
[TimeControl "180+2"]

1. e4 {[%emt 00:00:02] [%clk 00:03:01]} c5 {[%emt 00:00:01] [%clk 00:03:03]} 2.
Nf3 {[%emt 00:00:01] [%clk 00:03:02]} d6 {[%emt 00:00:02] [%clk 00:03:04]} 3. d4
{[%clk 00:03:03]} cxd4 {[%emt 00:00:01] [%clk 00:03:04]} 4. Nxd4 {[%clk
00:03:04]} Nf6 {[%emt 00:00:03] [%clk 00:03:05]} 5. Nc3 {[%emt 00:00:01] [%clk
00:03:05]} e6 {[%emt 00:00:02] [%clk 00:03:05]} 6. g4 {[%emt 00:00:09] [%clk
00:02:57]} h6 {[%emt 00:00:02] [%clk 00:03:06]} 7. Rg1 {[%emt 00:00:07] [%clk
00:02:52]} g5 {[%emt 00:00:04] [%clk 00:03:04]} 8. Be3 {[%emt 00:00:15] [%clk
00:02:39]} a6 {[%emt 00:00:11] [%clk 00:02:56]} 9. Bg2 {[%emt 00:00:56] [%clk
00:01:44]} Nbd7 {[%emt 00:00:03] [%clk 00:02:55]} 10. Qe2 {[%emt 00:00:09] [%clk
00:01:35]} Ne5 {[%emt 00:00:05] [%clk 00:02:54]} 11. h3 {[%emt 00:00:02] [%clk
00:01:35]} b5 {[%emt 00:00:01] [%clk 00:02:55]} 12. a3 {[%emt 00:00:22] [%clk
00:01:15]} Bb7 {[%emt 00:00:08] [%clk 00:02:49]} 13. O-O-O {[%emt 00:00:04]
[%clk 00:01:12]} Rc8 {[%emt 00:00:02] [%clk 00:02:50]} 14. f4 {[%emt 00:00:05]
[%clk 00:01:09]} gxf4 {[%emt 00:00:08] [%clk 00:02:44]} 15. Bxf4 {[%emt
00:00:01] [%clk 00:01:10]} Nfd7 {[%emt 00:00:03] [%clk 00:02:42]} 16. Nb3 {[%emt
00:00:12] [%clk 00:01:01]} Nc4 {[%emt 00:00:26] [%clk 00:02:18]} 17. Kb1 {[%emt
00:00:11] [%clk 00:00:52]} Qc7 {[%emt 00:00:31] [%clk 00:01:49]} 18. e5 {[%emt
00:00:30] [%clk 00:00:23]} dxe5 {[%emt 00:00:10] [%clk 00:01:42]} 19. Bxb7
{[%emt 00:00:04] [%clk 00:00:21]} Qxb7 {[%emt 00:00:02] [%clk 00:01:42]} 20. Bg3
{[%emt 00:00:05] [%clk 00:00:18]} Bg7 {[%emt 00:00:05] [%clk 00:01:39]} 21. Ne4
{[%emt 00:00:04] [%clk 00:00:16]} Rc6 {[%emt 00:00:14] [%clk 00:01:26]} 22. h4
{[%emt 00:00:04] [%clk 00:00:15]} a5 {[%emt 00:00:12] [%clk 00:01:16]} 23. g5
{[%emt 00:00:02] [%clk 00:00:14]} hxg5 {[%emt 00:00:06] [%clk 00:01:12]} 24.
hxg5 {[%clk 00:00:16]} b4 {[%emt 00:00:04] [%clk 00:01:10]} 25. a4 {[%emt
00:00:04] [%clk 00:00:14]} Qc7 {[%emt 00:00:07] [%clk 00:01:05]} 26. Qf3 {[%emt
00:00:09] [%clk 00:00:07]} Nf8 {[%emt 00:00:06] [%clk 00:01:01]} 27. Nf6+ {[%emt
00:00:02] [%clk 00:00:07]} Bxf6 {[%emt 00:00:02] [%clk 00:01:01]} 28. Qxf6
{[%emt 00:00:01] [%clk 00:00:08]} Rg8 {[%emt 00:00:05] [%clk 00:00:58]} 29. Rh1
{[%emt 00:00:04] [%clk 00:00:06]} Nd7 {[%emt 00:00:05] [%clk 00:00:55]} 30. Qf3
{[%emt 00:00:02] [%clk 00:00:05]} e4 {[%emt 00:00:05] [%clk 00:00:52]} 31. Qg2
{[%emt 00:00:02] [%clk 00:00:06]} Nde5 {[%emt 00:00:02] [%clk 00:00:52]} 32.
Qxe4 {[%emt 00:00:02] [%clk 00:00:06]} Ke7 {[%emt 00:00:22] [%clk 00:00:32]} 33.
Rh7 {[%emt 00:00:03] [%clk 00:00:06]} Rd6 {[%emt 00:00:06] [%clk 00:00:27]} 34.
Rf1 {[%clk 00:00:07]} Qc6 {[%emt 00:00:05] [%clk 00:00:24]} 35. Qh4 {[%emt
00:00:02] [%clk 00:00:07]} Ke8 {[%emt 00:00:03] [%clk 00:00:23]} 36. Rh8 {[%emt
00:00:02] [%clk 00:00:07]} Rxh8 {[%emt 00:00:09] [%clk 00:00:16]} 37. Qxh8+
{[%clk 00:00:09]} Kd7 {[%emt 00:00:01] [%clk 00:00:16]} 38. Bxe5 {[%clk
00:00:10]} Nxe5 {[%emt 00:00:06] [%clk 00:00:12]} 39. Qxe5 {[%clk 00:00:11]} Ke8
{[%clk 00:00:13]} 40. Qh8+ {[%emt 00:00:01] [%clk 00:00:12]} Ke7 {[%emt
00:00:01] [%clk 00:00:14]} 41. Qf6+ {[%emt 00:00:01] [%clk 00:00:13]} Kd7 {[%emt
00:00:02] [%clk 00:00:14]} 42. Qxf7+ {[%emt 00:00:01] [%clk 00:00:14]} Kc8
{[%clk 00:00:16]} 43. g6 {[%emt 00:00:07] [%clk 00:00:09]} Rd7 {[%emt 00:00:10]
[%clk 00:00:09]} 44. Qf8+ {[%emt 00:00:01] [%clk 00:00:09]} Rd8 {[%clk
00:00:10]} 45. Qxd8+ {[%emt 00:00:03] [%clk 00:00:09]} Kxd8 {[%clk 00:00:10]}
46. g7 {[%clk 00:00:10]} 1-0

[Site "Europe Echecs"]

[Event "Championnat d'Europe de Blitz"]
[Date "2024.12.09"]
[White "Goncalves, Lucas Jordao"]
[Black "Grigoriants, Sergey"]
[WhiteElo "1990"]
[BlackElo "2542"]
[Round "2.48"]
[Result "0-1"]
[TimeControl "180+2"]

1. e4 {[%emt 00:00:02] [%clk 00:03:02]} c5 {[%emt 00:00:02] [%clk 00:03:02]} 2.
Nf3 {[%emt 00:00:02] [%clk 00:03:02]} d6 {[%emt 00:00:05] [%clk 00:02:59]} 3. d4
{[%emt 00:00:01] [%clk 00:03:03]} cxd4 {[%emt 00:00:02] [%clk 00:02:59]} 4. Nxd4
{[%emt 00:00:02] [%clk 00:03:04]} Nf6 {[%emt 00:00:01] [%clk 00:02:59]} 5. Nc3
{[%emt 00:00:02] [%clk 00:03:04]} a6 {[%clk 00:03:00]} 6. Bg5 {[%emt 00:00:11]
[%clk 00:02:55]} Nbd7 {[%emt 00:00:07] [%clk 00:02:55]} 7. Be2 {[%emt 00:00:12]
[%clk 00:02:45]} e6 {[%emt 00:00:18] [%clk 00:02:39]} 8. Qd2 {[%emt 00:00:10]
[%clk 00:02:37]} b5 {[%emt 00:00:15] [%clk 00:02:27]} 9. a3 {[%emt 00:00:04]
[%clk 00:02:34]} Bb7 {[%emt 00:00:03] [%clk 00:02:26]} 10. Bf3 {[%emt 00:00:17]
[%clk 00:02:19]} Ne5 {[%emt 00:00:09] [%clk 00:02:20]} 11. O-O-O {[%emt
00:00:45] [%clk 00:01:35]} Be7 {[%emt 00:00:05] [%clk 00:02:17]} 12. Rhe1 {[%emt
00:00:38] [%clk 00:00:58]} Rc8 {[%emt 00:00:12] [%clk 00:02:08]} 13. Kb1 {[%emt
00:00:13] [%clk 00:00:48]} O-O {[%emt 00:00:09] [%clk 00:02:00]} 14. Bh4 {[%emt
00:00:27] [%clk 00:00:23]} Qb6 {[%emt 00:00:43] [%clk 00:01:19]} 15. Be2 {[%emt
00:00:15] [%clk 00:00:09]} Nxe4 {[%emt 00:00:30] [%clk 00:00:51]} 16. Nxe4
{[%emt 00:00:06] [%clk 00:00:06]} Bxh4 {[%emt 00:00:01] [%clk 00:00:52]} 17. Bd3
{[%emt 00:00:04] [%clk 00:00:04]} Qxd4 {[%emt 00:00:14] [%clk 00:00:40]} 18.
Nf6+ {[%emt 00:00:03] [%clk 00:00:03]} Kh8 {[%emt 00:00:01] [%clk 00:00:41]} 19.
Nd7 {[%emt 00:00:02] [%clk 00:00:03]} Nxd7 {[%emt 00:00:08] [%clk 00:00:37]} 0-1

[Site "Europe Echecs"]

[Event "Championnat d'Europe de Blitz"]
[Date "2024.12.09"]
[White "Schneider, Ilja"]
[Black "Redzisz, Michal"]
[WhiteElo "2414"]
[BlackElo "2263"]
[Round "2.49"]
[Result "1/2-1/2"]
[TimeControl "180+2"]

1. e4 {[%emt 00:00:01] [%clk 00:03:02]} e5 {[%emt 00:00:02] [%clk 00:03:03]} 2.
Nf3 {[%clk 00:03:03]} Nf6 {[%emt 00:00:01] [%clk 00:03:04]} 3. d4 {[%emt
00:00:01] [%clk 00:03:04]} Nxe4 {[%emt 00:00:01] [%clk 00:03:04]} 4. Bd3 {[%emt
00:00:01] [%clk 00:03:05]} d5 {[%emt 00:00:01] [%clk 00:03:06]} 5. Nxe5 {[%emt
00:00:01] [%clk 00:03:06]} Nd7 {[%clk 00:03:07]} 6. Nxd7 {[%emt 00:00:01] [%clk
00:03:07]} Bxd7 {[%emt 00:00:01] [%clk 00:03:08]} 7. O-O {[%emt 00:00:02] [%clk
00:03:07]} Bd6 {[%clk 00:03:09]} 8. Nc3 {[%clk 00:03:08]} Nxc3 {[%emt 00:00:02]
[%clk 00:03:10]} 9. bxc3 {[%clk 00:03:09]} O-O {[%emt 00:00:02] [%clk 00:03:10]}
10. Qh5 {[%emt 00:00:01] [%clk 00:03:10]} f5 {[%emt 00:00:01] [%clk 00:03:12]}
11. Re1 {[%clk 00:03:11]} c6 {[%emt 00:00:02] [%clk 00:03:11]} 12. Bg5 {[%emt
00:00:03] [%clk 00:03:11]} Qc7 {[%clk 00:03:13]} 13. Re3 {[%clk 00:03:12]} g6
{[%emt 00:01:07] [%clk 00:02:08]} 14. Qh4 {[%emt 00:00:04] [%clk 00:03:10]} Rae8
{[%emt 00:00:09] [%clk 00:02:01]} 15. Rae1 {[%emt 00:00:02] [%clk 00:03:09]}
Rxe3 {[%emt 00:00:35] [%clk 00:01:28]} 16. Rxe3 {[%emt 00:00:04] [%clk
00:03:08]} Re8 {[%clk 00:01:29]} 17. Be7 {[%emt 00:00:43] [%clk 00:02:26]} Bxe7
{[%emt 00:00:54] [%clk 00:00:37]} 18. Rxe7 {[%emt 00:00:01] [%clk 00:02:27]}
Rxe7 {[%clk 00:00:38]} 19. Qxe7 {[%clk 00:02:28]} b5 {[%emt 00:00:07] [%clk
00:00:33]} 20. h4 {[%emt 00:00:10] [%clk 00:02:21]} h5 {[%emt 00:00:19] [%clk
00:00:16]} 21. Kf1 {[%emt 00:00:47] [%clk 00:01:35]} Qc8 {[%emt 00:00:01] [%clk
00:00:18]} 22. Ke2 {[%emt 00:00:35] [%clk 00:01:02]} Qe8 {[%clk 00:00:19]} 23.
Qxe8+ {[%emt 00:00:06] [%clk 00:00:58]} Bxe8 {[%emt 00:00:01] [%clk 00:00:20]}
24. Ke3 {[%clk 00:00:59]} Kg7 {[%emt 00:00:04] [%clk 00:00:19]} 25. Kf4 {[%clk
00:01:00]} Kf6 {[%clk 00:00:21]} 26. Be2 {[%emt 00:00:06] [%clk 00:00:56]} a5
{[%emt 00:00:08] [%clk 00:00:15]} 27. f3 {[%emt 00:00:16] [%clk 00:00:41]} Bd7
{[%emt 00:00:05] [%clk 00:00:13]} 28. Bd1 {[%emt 00:00:14] [%clk 00:00:28]} Be8
{[%clk 00:00:14]} 29. g4 {[%emt 00:00:01] [%clk 00:00:29]} Bd7 {[%emt 00:00:02]
[%clk 00:00:14]} 30. gxh5 {[%emt 00:00:10] [%clk 00:00:21]} gxh5 {[%clk
00:00:16]} 31. Be2 {[%emt 00:00:02] [%clk 00:00:21]} Be8 {[%emt 00:00:09] [%clk
00:00:10]} 32. Ke3 {[%emt 00:00:03] [%clk 00:00:20]} Bd7 {[%emt 00:00:03] [%clk
00:00:09]} 33. f4 {[%emt 00:00:07] [%clk 00:00:15]} Be8 {[%emt 00:00:02] [%clk
00:00:09]} 34. Kd2 {[%emt 00:00:01] [%clk 00:00:16]} Ke7 {[%emt 00:00:04] [%clk
00:00:07]} 35. Kc1 {[%emt 00:00:04] [%clk 00:00:14]} Kd6 {[%emt 00:00:01] [%clk
00:00:08]} 36. Bd3 {[%clk 00:00:15]} Bd7 {[%emt 00:00:01] [%clk 00:00:09]} 37.
Kb2 {[%clk 00:00:16]} c5 {[%emt 00:00:07] [%clk 00:00:04]} 38. Kc1 {[%emt
00:00:06] [%clk 00:00:12]} c4 {[%emt 00:00:02] [%clk 00:00:04]} 39. Be2 {[%emt
00:00:01] [%clk 00:00:12]} Be8 {[%clk 00:00:05]} 40. Bf1 {[%emt 00:00:08] [%clk
00:00:07]} Ke6 {[%emt 00:00:03] [%clk 00:00:04]} 41. Kb2 {[%emt 00:00:03] [%clk
00:00:06]} Kd6 {[%emt 00:00:01] [%clk 00:00:05]} 42. Bh3 {[%emt 00:00:01] [%clk
00:00:06]} Ke6 {[%emt 00:00:02] [%clk 00:00:06]} 43. Bg2 {[%emt 00:00:03] [%clk
00:00:05]} Kd6 {[%emt 00:00:01] [%clk 00:00:06]} 44. Kc1 {[%clk 00:00:02]}
1/2-1/2

[Site "Europe Echecs"]